fUST/lending_fUST_20250530
["ID","MTS","AMOUNT","RATE_DAILY","PERIOD"]
[363028869,1748554249010,-151.0,0.00021369,2]
[363028870,1748554249020,-151.0,0.00021369,2]
[363028871,1748554249029,-151.0,0.00021369,2]
[363028872,1748554249039,-2931.409392,0.00021369,2]
[363028873,1748554249048,-2931.409392,0.00021369,2]
[363028874,1748554249057,-303.981541,0.00021369,2]
[363028875,1748554249067,-303.981541,0.00021369,2]
[363028876,1748554249076,-430.0,0.00021369,2]
[363028877,1748554249086,-430.0,0.00021369,2]
[363028878,1748554249095,-523.66,0.00021369,2]
[363028879,1748554249104,-906.96,0.00021369,2]
[363028880,1748554249116,-151.0,0.00021369,2]
[363028881,1748554249126,-430.0,0.00021369,2]
[363028882,1748554249135,-151.0,0.00021369,2]
[363028883,1748554249144,-151.0,0.00021369,2]
[363028884,1748554249154,-151.0,0.00021369,2]
[363028885,1748554249164,-1981.204217,0.00021369,2]
[363028886,1748554249251,-1981.204217,0.00021369,2]
[363028887,1748554249261,-570.595347,0.00021369,2]
[363028888,1748554249270,-570.595347,0.00021369,2]
[363028889,1748554249280,-430.0,0.00021369,2]
[363028890,1748554249294,-1717.32,0.00021369,2]
[363028891,1748554249305,-805.53,0.00021369,2]
[363028892,1748554249315,-485.41,0.00021369,2]
[363028893,1748554249325,-430.0,0.00021369,2]
[363028894,1748554249335,-1009.55,0.00021369,2]
[363028895,1748554249345,-294.49482467,0.00021369,2]
[363028896,1748554249355,-430.0,0.00021369,2]
[363028897,1748554249366,-151.0,0.00021369,2]
[363028898,1748554249381,-430.0,0.00021369,2]
[363028899,1748554249391,-430.0,0.00021369,2]
[363028900,1748554249400,-223.540915,0.00021369,2]
[363028901,1748554249410,-430.0,0.00021369,2]
[363028902,1748554249419,-223.540915,0.00021369,2]
[363028903,1748554249429,-804.18,0.00021369,2]
[363028904,1748554249438,-151.0,0.00021369,2]
[363028905,1748554249448,-151.0,0.00021369,2]
[363028906,1748554249457,-151.0,0.00021369,2]
[363028907,1748554249467,-430.0,0.00021369,2]
[363028908,1748554249476,-430.0,0.00021369,2]
[363028909,1748554249486,-7526.6,0.00021369,2]
[363028910,1748554249495,-1275.04,0.00021369,2]
[363028911,1748554249504,-6318.4,0.00021369,2]
[363028912,1748554249515,-430.0,0.00021369,2]
[363028913,1748554249524,-684.6,0.00021369,2]
[363028914,1748554249534,-2518.03,0.00021369,2]
[363028915,1748554249543,-951.803411,0.00021369,2]
[363028916,1748554249553,-430.0,0.00021369,2]
[363028917,1748554249562,-430.0,0.00021369,2]
[363028918,1748554249572,-951.803411,0.00021369,2]
[363028919,1748554249581,-430.0,0.00021369,2]
[363028920,1748554249590,-430.0,0.00021369,2]
[363028921,1748554249600,-430.0,0.00021369,2]
[363028922,1748554249610,-430.0,0.00021369,2]
[363028923,1748554249619,-430.0,0.00021369,2]
[363028924,1748554249629,-723.06,0.00021369,2]
[363028925,1748554249638,-914.28,0.00021369,2]
[363028926,1748554249647,-611.91,0.00021369,2]
[363028927,1748554249656,-430.0,0.00021369,2]
[363028928,1748554249666,-1003.82,0.00021369,2]
[363028929,1748554249676,-1162.84,0.00021369,2]
[363028930,1748554249684,-2787.47,0.00021369,2]
[363028931,1748554249693,-568.18,0.00021369,2]
[363028932,1748554249703,-456.21,0.00021369,2]
[363028933,1748554249713,-430.0,0.00021369,2]
[363028934,1748554249723,-5347.93,0.00021369,2]
[363028935,1748554249732,-997.5,0.00021369,2]
[363028936,1748554249742,-430.0,0.00021369,2]
[363028937,1748554249752,-1245.04,0.00021369,2]
[363028938,1748554249762,-1153.33,0.00021369,2]
[363028939,1748554249771,-470.92,0.00021369,2]
[363028940,1748554249782,-430.0,0.00021369,2]
[363028941,1748554249791,-151.0,0.00021369,2]
[363028942,1748554249800,-1267.28,0.00021369,2]
[363028943,1748554249809,-430.0,0.00021369,2]
[363028944,1748554249819,-151.0,0.00021369,2]
[363028945,1748554249828,-3394.88,0.00021369,2]
[363028946,1748554249837,-8018.64,0.00021369,2]
[363028947,1748554249847,-430.0,0.00021369,2]
[363028948,1748554249856,-333.94,0.00021369,2]
[363028949,1748554249865,-3637.54,0.00021369,2]
[363028950,1748554249875,-8878.97,0.00021369,2]
[363028951,1748554249884,-1832.73,0.00021369,2]
[363028952,1748554249893,-430.0,0.00021369,2]
[363028953,1748554249903,-2457.42,0.00021369,2]
[363028954,1748554249912,-430.0,0.00021369,2]
[363028955,1748554249921,-1413.15,0.00021369,2]
[363028956,1748554249930,-2205.08,0.00021369,2]
[363028957,1748554249939,-815.38,0.00021369,2]
[363028958,1748554249948,-2469.92,0.00021369,2]
[363028959,1748554249958,-631.57,0.00021369,2]
[363028960,1748554249967,-500.0,0.00021369,2]
[363028961,1748554249976,-2181.03,0.00021369,2]
[363028962,1748554249985,-430.0,0.00021369,2]
[363028963,1748554249994,-224.937947,0.00021369,2]
[363028964,1748554250003,-430.0,0.00021369,2]
[363028965,1748554250016,-224.937947,0.00021369,2]
[363028966,1748554250025,-2251.1,0.00021369,2]
[363028967,1748554250034,-538.15,0.00021369,2]
[363028968,1748554250043,-608.69,0.00021369,2]
[363028969,1748554250053,-9605.38,0.00021369,2]
[363028970,1748554250063,-1118.53,0.00021369,2]
[363028971,1748554250072,-630.11,0.00021369,2]
[363028972,1748554250082,-5182.56,0.00021369,2]
[363028973,1748554250091,-430.0,0.00021369,2]
[363028974,1748554250100,-1156.51,0.00021369,2]
[363028975,1748554250110,-3817.27,0.00021369,2]
[363028976,1748554250119,-729.1,0.00021369,2]
[363028977,1748554250129,-2566.31,0.00021369,2]
[363028978,1748554250138,-151.0,0.00021369,2]
[363028979,1748554250147,-430.0,0.00021369,2]
[363028980,1748554250157,-4425.93,0.00021369,2]
[363028981,1748554250166,-507.49,0.00021369,2]
[363028982,1748554250176,-430.0,0.00021369,2]
[363028983,1748554250185,-757.96,0.00021369,2]
[363028984,1748554250194,-3714.349623,0.00021369,2]
[363028985,1748554250204,-3519.59,0.00021369,2]
[363028986,1748554250213,-3714.349623,0.00021369,2]
[363028987,1748554250222,-430.0,0.00021369,2]
[363028988,1748554250232,-517.97,0.00021369,2]
[363028989,1748554250241,-746.37,0.00021369,2]
[363028990,1748554250250,-860.74149631,0.00021369,2]
[363028991,1748554250554,-256.32850369,0.00021369,2]
[363028992,1748554250564,-197.34393176,0.00021369,2]
[363028993,1748554250576,-608.48178832,0.00021369,2]
[363028994,1748554250587,-3895.82427992,0.00021369,2]
[363028995,1748554250596,-982.45,0.00021369,2]
[363028996,1748554250605,-247.47702845,0.00021452,5]
[363028997,1748554250686,-430.0,0.00019178,2]
[363028998,1748554250696,-300.0,0.00019178,2]
[363028999,1748554250705,-220.786568,0.00019451,2]
[363029000,1748554250717,-79.213432,0.00019451,2]
[363029001,1748554250731,-430.0,0.00019452,2]
[363029002,1748554250744,-430.0,0.00019726,2]
[363029003,1748554250757,-430.0,0.0002,2]
[363029004,1748554250768,-430.0,0.00020273,2]
[363029005,1748554250777,-2712.19520834,0.00021452,5]
[363029006,1748554250787,-903.15213563,0.00021476,2]
[363029007,1748554250796,-777.41868803,0.00021516,2]
[363029008,1748554250806,-381.95344035,0.00021543,2]
[363029009,1748554250816,-2959.67223679,0.0002159,5]
[363029010,1748554250826,-10125.25556015,0.00021642,3]
[363029011,1748554250835,-21104.34173603,0.00021642,2]
[363029012,1748554250846,-4524.2571438,0.00021642,2]
[363029014,1748554316174,150.0,0.00014515,2]
[363029015,1748554316603,117.57634039,0.00015834,2]
[363029016,1748554316627,32.42365961,0.00015834,2]
[363029017,1748554316983,150.0,0.00017154,2]
[363029018,1748554386357,150.0,0.00014564,2]
[363029019,1748554386746,150.0,0.00015888,2]
[363029021,1748554392919,617.701517,0.00013699,2]
[363029023,1748554449165,187558.27488959,0.00019178,30]
[363029024,1748554456613,150.0,0.00014685,2]
[363029025,1748554527116,150.0,0.00014551,2]
[363029026,1748554527565,150.0,0.00015874,2]
[363029027,1748554595729,150.0,0.00014555,2]
[363029028,1748554596162,150.0,0.00015878,2]
[363029029,1748554661848,150.0,0.00014533,2]
[363029030,1748554662267,150.0,0.00015854,2]
[363029031,1748554728430,150.0,0.00014534,2]
[363029032,1748554729062,150.0,0.00015855,2]
[363029033,1748554794726,150.0,0.00014556,2]
[363029034,1748554795126,150.0,0.00015879,2]
[363029035,1748554861111,150.0,0.00014562,2]
[363029036,1748554926648,150.0,0.00014568,2]
[363029037,1748554927045,150.0,0.00015893,2]
[363029038,1748554993190,150.0,0.0001459,2]
[363029041,1748555058867,150.0,0.00014561,2]
[363029042,1748555059297,150.0,0.00015885,2]
[363029044,1748555123865,150.0,0.0001456,2]
[363029045,1748555136278,-176.6002201,0.00016438,3]
[363029046,1748555136301,-1506.92035359,0.00017025,2]
[363029047,1748555139074,-96.11652984,0.00017025,2]
[363029048,1748555139096,-150.0,0.00017197,2]
[363029049,1748555139119,-1647.8965882,0.00018071,2]
[363029050,1748555189042,150.0,0.00014555,2]
[363029051,1748555189492,150.0,0.00015879,2]
[363029052,1748555225096,-961.58361842,0.0001789,2]
[363029053,1748555227094,-384.03400734,0.0001789,2]
[363029054,1748555227116,-5.8789039,0.00018071,2]
[363029055,1748555227141,-150.0,0.00018519,2]
[363029056,1748555227164,-565.61075129,0.00019077,2]
[363029057,1748555231140,-38.58910213,0.00019077,2]
[363029058,1748555231163,-303.0,0.00019099,2]
[363029059,1748555231186,-5000.0,0.000191,2]
[363029060,1748555231208,-547.04,0.00019168,3]
[363029061,1748555231229,-500.68641638,0.00019173,2]
[363029062,1748555231252,-300.0,0.00019175,2]
[363029063,1748555231275,-300.0,0.00019175,2]
[363029064,1748555231297,-5455.52549964,0.00019176,2]
[363029065,1748555248072,-1631.07734391,0.00019176,2]
[363029066,1748555251083,-1509.66548636,0.00019177,2]
[363029067,1748555255150,150.0,0.00014538,2]
[363029068,1748555255616,150.0,0.00015859,2]
[363029070,1748555287533,299.48602011,6.8e-07,2]
[363029081,1748555322167,150.0,0.00014555,2]
[363029083,1748555362210,-150.0,0.00017181,2]
[363029084,1748555368407,-300.0,0.00019176,2]
[363029085,1748555368428,-353.34565366,0.00019177,2]
[363029086,1748555368448,-336.50647676,0.00019177,2]
[363029092,1748555388589,150.0,0.00014557,2]
[363029093,1748555389161,150.0,0.00015881,2]
[363029094,1748555389380,150.0,0.00017204,2]
[363029095,1748555389795,150.0,0.00018527,2]
[363029098,1748555403787,369.72410251,0.00013699,2]
[363029099,1748555403810,310.17818949,0.00013699,2]
[363029130,1748555432526,-1085.21060958,0.000189,2]
[363029132,1748555432536,-256.0,0.00019176,2]
[363029134,1748555432548,-645.0,0.00019176,2]
[363029136,1748555432559,-3153.82803688,0.00019177,2]
[363029138,1748555432569,-500.0,0.00019177,2]
[363029140,1748555432578,-500.0,0.00019177,2]
[363029142,1748555432587,-559.65871752,0.00019177,2]
[363029144,1748555432597,-601.60146829,0.00019177,2]
[363029146,1748555432606,-650.0,0.00019177,2]
[363029148,1748555432616,-500.0,0.00019177,2]
[363029150,1748555432626,-500.0,0.00019177,2]
[363029152,1748555432635,-500.0,0.00019177,2]
[363029154,1748555432644,-500.0,0.00019177,2]
[363029156,1748555432654,-500.0,0.00019177,2]
[363029158,1748555432663,-500.0,0.00019177,2]
[363029160,1748555432673,-500.0,0.00019177,2]
[363029162,1748555432682,-500.0,0.00019177,2]
[363029164,1748555432691,-500.0,0.00019177,2]
[363029166,1748555432701,-500.0,0.00019177,2]
[363029168,1748555432712,-500.0,0.00019177,2]
[363029170,1748555432723,-500.0,0.00019177,2]
[363029172,1748555432732,-342.90095873,0.00019177,2]
[363029174,1748555432741,-500.0,0.00019177,2]
[363029176,1748555432750,-500.0,0.00019177,2]
[363029178,1748555432761,-500.0,0.00019177,2]
[363029180,1748555432771,-550.0,0.00019177,2]
[363029182,1748555432780,-232.22211638,0.00019178,2]
[363029184,1748555432791,-490.0,0.00019178,2]
[363029186,1748555432802,-430.0,0.00019178,2]
[363029187,1748555432811,-347.49206568,0.00019178,2]
[363029189,1748555432821,-550.0,0.00019178,2]
[363029191,1748555432831,-500.0,0.00019178,2]
[363029193,1748555432841,-610.08041836,0.00019178,2]
[363029194,1748555432851,-570.0,0.00019178,2]
[363029195,1748555432860,-430.0,0.00019178,2]
[363029197,1748555432869,-430.0,0.00019178,2]
[363029199,1748555432879,-490.0,0.00019178,2]
[363029201,1748555432889,-430.0,0.00019178,2]
[363029202,1748555432898,-430.0,0.00019178,2]
[363029204,1748555432907,-430.0,0.00019178,2]
[363029205,1748555432916,-430.0,0.00019178,2]
[363029206,1748555432925,-430.0,0.00019178,2]
[363029207,1748555432934,-430.0,0.00019178,2]
[363029208,1748555432943,-430.0,0.00019178,2]
[363029209,1748555432954,-430.0,0.00019178,2]
[363029211,1748555432963,-364.80785142,0.00019178,2]
[363029212,1748555432972,-430.0,0.00019178,2]
[363029213,1748555432982,-233.75759186,0.00019178,2]
[363029214,1748555432991,-430.0,0.00019178,2]
[363029215,1748555433002,-430.52180674,0.00019178,2]
[363029216,1748555433011,-430.5881229,0.00019178,2]
[363029217,1748555433021,-430.0,0.00019178,2]
[363029218,1748555433031,-430.0,0.00019178,2]
[363029219,1748555433041,-430.0,0.00019178,2]
[363029220,1748555433051,-430.0,0.00019178,2]
[363029221,1748555433060,-430.0,0.00019178,2]
[363029222,1748555433071,-493.99742727,0.00019178,2]
[363029223,1748555433081,-430.0,0.00019178,2]
[363029224,1748555433091,-430.0,0.00019178,2]
[363029225,1748555433100,-239.98479044,0.00019178,2]
[363029226,1748555433110,-430.64084423,0.00019178,2]
[363029227,1748555433120,-430.0,0.00019178,2]
[363029228,1748555433129,-430.0,0.00019178,2]
[363029229,1748555433138,-430.0,0.00019178,2]
[363029230,1748555433147,-430.0,0.00019178,2]
[363029231,1748555433156,-432.81831017,0.00019178,2]
[363029232,1748555433166,-430.0,0.00019178,2]
[363029233,1748555433176,-431.24401611,0.00019178,2]
[363029234,1748555433185,-431.8041462,0.00019178,2]
[363029235,1748555433195,-430.0,0.00019178,2]
[363029236,1748555433205,-430.0,0.00019178,2]
[363029237,1748555433214,-430.0,0.00019178,2]
[363029238,1748555433224,-430.0,0.00019178,2]
[363029239,1748555433234,-430.0,0.00019178,2]
[363029240,1748555433243,-431.40152635,0.00019178,2]
[363029241,1748555433253,-404.92512795,0.00019178,2]
[363029242,1748555433262,-430.80770981,0.00019178,2]
[363029243,1748555433271,-430.0,0.00019178,2]
[363029244,1748555433416,-431.10990926,0.00019178,2]
[363029245,1748555433425,-430.0,0.00019178,2]
[363029246,1748555433435,-525.11398757,0.00019178,2]
[363029247,1748555433444,-431.07858236,0.00019178,2]
[363029248,1748555433454,-401.14428768,0.00019178,2]
[363029249,1748555433464,-431.61067073,0.00019178,2]
[363029250,1748555433474,-403.05956044,0.00019178,2]
[363029251,1748555433484,-430.0,0.00019178,2]
[363029252,1748555433493,-433.46536059,0.00019178,2]
[363029253,1748555433502,-430.0,0.00019178,2]
[363029254,1748555433511,-430.0,0.00019178,2]
[363029255,1748555433521,-430.0,0.00019178,2]
[363029256,1748555433530,-430.0,0.00019178,2]
[363029257,1748555433539,-508.49204427,0.00019178,2]
[363029258,1748555433549,-418.9004,0.00019178,2]
[363029259,1748555433559,-430.0,0.00019178,2]
[363029260,1748555433568,-432.64667459,0.00019178,2]
[363029261,1748555433578,-430.0,0.00019178,2]
[363029262,1748555433588,-430.0,0.00019178,2]
[363029263,1748555433598,-408.82727833,0.00019178,2]
[363029264,1748555433607,-430.0,0.00019178,2]
[363029265,1748555433617,-430.66831409,0.00019178,2]
[363029266,1748555433626,-430.54603059,0.00019178,2]
[363029267,1748555433636,-401.0998147,0.00019178,2]
[363029268,1748555433645,-569.7445766,0.00019178,2]
[363029269,1748555433655,-430.55120305,0.00019178,2]
[363029270,1748555433664,-430.0,0.00019178,2]
[363029271,1748555433674,-402.16397044,0.00019178,2]
[363029272,1748555433683,-430.0,0.00019178,2]
[363029273,1748555433692,-430.0,0.00019178,2]
[363029274,1748555433702,-430.0,0.00019178,2]
[363029275,1748555433713,-403.13121289,0.00019178,2]
[363029276,1748555433722,-431.54164494,0.00019178,2]
[363029277,1748555433731,-430.0,0.00019178,2]
[363029278,1748555433741,-524.34667584,0.00019178,2]
[363029279,1748555433751,-430.71108495,0.00019178,2]
[363029280,1748555433762,-400.0,0.00019178,2]
[363029281,1748555433772,-431.88087212,0.00019178,2]
[363029282,1748555433781,-430.0,0.00019178,2]
[363029283,1748555433792,-431.96434509,0.00019178,2]
[363029284,1748555433803,-430.0,0.00019178,2]
[363029285,1748555433812,-430.0,0.00019178,2]
[363029286,1748555433821,-430.0,0.00019178,2]
[363029287,1748555433831,-430.64900735,0.00019178,2]
[363029288,1748555433840,-430.47614041,0.00019178,2]
[363029289,1748555433849,-430.0,0.00019178,2]
[363029290,1748555433859,-1000.64332476,0.00019178,2]
[363029291,1748555433868,-431.67944981,0.00019178,2]
[363029292,1748555433877,-403.02955024,0.00019178,2]
[363029293,1748555433886,-507.18152582,0.00019178,2]
[363029294,1748555433896,-430.0,0.00019178,2]
[363029295,1748555433905,-444.74290988,0.00019178,2]
[363029296,1748555433915,-430.0,0.00019178,2]
[363029297,1748555433924,-430.0,0.00019178,2]
[363029298,1748555433933,-430.84832186,0.00019178,2]
[363029299,1748555433943,-430.0,0.00019178,2]
[363029300,1748555433953,-431.26906748,0.00019178,2]
[363029301,1748555433962,-431.31898292,0.00019178,2]
[363029302,1748555433972,-430.0,0.00019178,2]
[363029303,1748555433981,-431.18459552,0.00019178,2]
[363029304,1748555433990,-430.0,0.00019178,2]
[363029305,1748555434000,-430.0,0.00019178,2]
[363029306,1748555434009,-432.85663331,0.00019178,2]
[363029307,1748555434018,-571.94707076,0.00019178,2]
[363029308,1748555434027,-430.0,0.00019178,2]
[363029309,1748555434036,-430.0,0.00019178,2]
[363029310,1748555434046,-415.76938968,0.00019178,2]
[363029311,1748555434055,-431.04214636,0.00019178,2]
[363029312,1748555434064,-431.54354014,0.00019178,2]
[363029313,1748555434073,-430.0,0.00019178,2]
[363029314,1748555434082,-432.81462948,0.00019178,2]
[363029315,1748555434092,-430.76774755,0.00019178,2]
[363029316,1748555434101,-430.82970958,0.00019178,2]
[363029317,1748555434110,-432.12813567,0.00019178,2]
[363029318,1748555434120,-433.40130627,0.00019178,2]
[363029319,1748555434129,-402.05547514,0.00019178,2]
[363029320,1748555434138,-403.91299845,0.00019178,2]
[363029321,1748555434147,-430.7695933,0.00019178,2]
[363029322,1748555434156,-430.0,0.00019178,2]
[363029323,1748555434165,-411.19967233,0.00019178,2]
[363029324,1748555434175,-430.0,0.00019178,2]
[363029325,1748555434184,-430.0,0.00019178,2]
[363029326,1748555434193,-405.44056148,0.00019178,2]
[363029327,1748555434203,-430.0,0.00019178,2]
[363029328,1748555434212,-431.94957379,0.00019178,2]
[363029329,1748555434222,-433.29933048,0.00019178,2]
[363029330,1748555434231,-430.0,0.00019178,2]
[363029331,1748555434240,-430.0,0.00019178,2]
[363029332,1748555434250,-430.0,0.00019178,2]
[363029333,1748555434259,-430.59389948,0.00019178,2]
[363029334,1748555434268,-430.0,0.00019178,2]
[363029335,1748555434277,-430.0,0.00019178,2]
[363029336,1748555434286,-430.0,0.00019178,2]
[363029337,1748555434295,-400.0,0.00019178,2]
[363029338,1748555434303,-430.0,0.00019178,2]
[363029339,1748555434312,-500.0,0.00019178,2]
[363029340,1748555434321,-490.0,0.00019178,2]
[363029341,1748555434330,-154.61416048,0.00019178,2]
[363029342,1748555434338,-430.79264539,0.00019178,2]
[363029343,1748555434347,-406.35753184,0.00019178,2]
[363029344,1748555434355,-430.0,0.00019178,2]
[363029345,1748555434364,-1738.29,0.00019178,2]
[363029346,1748555434374,-190.53737934,0.00019178,2]
[363029347,1748555434383,-771.09,0.00019178,2]
[363029348,1748555434392,-402.2231976,0.00019178,2]
[363029349,1748555434400,-470.0,0.00019178,2]
[363029350,1748555434409,-432.94340623,0.00019178,2]
[363029351,1748555434418,-430.0,0.00019178,2]
[363029352,1748555434427,-434.14660711,0.00019178,2]
[363029353,1748555434436,-430.0,0.00019178,2]
[363029354,1748555434445,-430.0,0.00019178,2]
[363029355,1748555434455,-430.41777428,0.00019178,2]
[363029356,1748555434464,-460.57,0.00019178,2]
[363029357,1748555434473,-434.0223265,0.00019178,2]
[363029358,1748555434482,-433.20175949,0.00019178,2]
[363029359,1748555434491,-431.98173589,0.00019178,2]
[363029360,1748555434500,-430.0,0.00019178,2]
[363029361,1748555434509,-490.0,0.00019178,2]
[363029362,1748555434518,-1000.05,0.00019178,2]
[363029363,1748555434527,-472.07231314,0.00019178,2]
[363029364,1748555434536,-430.0,0.00019178,2]
[363029365,1748555434545,-430.0,0.00019178,2]
[363029366,1748555434554,-430.0,0.00019178,2]
[363029367,1748555434563,-430.0,0.00019178,2]
[363029368,1748555434573,-430.0,0.00019178,2]
[363029369,1748555434582,-433.04794232,0.00019178,2]
[363029370,1748555434591,-430.0,0.00019178,2]
[363029371,1748555434600,-430.0,0.00019178,2]
[363029372,1748555434610,-430.0,0.00019178,2]
[363029373,1748555434618,-239.22892014,0.00019178,2]
[363029404,1748555438543,-20.77107986,0.00019178,2]
[363029405,1748555438554,-430.0,0.00019178,2]
[363029406,1748555438563,-430.0,0.00019178,2]
[363029407,1748555438572,-430.0,0.00019178,2]
[363029408,1748555438581,-430.0,0.00019178,2]
[363029409,1748555438591,-430.0,0.00019178,2]
[363029410,1748555438600,-430.0,0.00019178,2]
[363029411,1748555438609,-210.25374003,0.00019178,2]
[363029412,1748555438619,-351.91810467,0.00019178,2]
[363029413,1748555438628,-1000.0,0.00019178,2]
[363029414,1748555438638,-430.0,0.00019178,2]
[363029415,1748555438647,-430.0,0.00019178,2]
[363029416,1748555438656,-430.0,0.00019178,2]
[363029417,1748555438665,-430.0,0.00019178,2]
[363029418,1748555438674,-430.0,0.00019178,2]
[363029419,1748555438684,-430.0,0.00019178,2]
[363029420,1748555438693,-430.0,0.00019178,2]
[363029421,1748555438703,-393.88889079,0.00019178,2]
[363029422,1748555438713,-430.0,0.00019178,2]
[363029423,1748555438727,-430.0,0.00019178,2]
[363029424,1748555438736,-430.0,0.00019178,2]
[363029425,1748555438746,-430.0,0.00019178,2]
[363029426,1748555438755,-430.0,0.00019178,2]
[363029427,1748555438766,-430.0,0.00019178,2]
[363029428,1748555438775,-430.0,0.00019178,2]
[363029429,1748555438784,-430.0,0.00019178,2]
[363029430,1748555438793,-754.28,0.00019178,2]
[363029431,1748555438803,-259.47891798,0.00019178,2]
[363029432,1748555438811,-430.0,0.00019178,2]
[363029433,1748555438819,-430.0,0.00019178,2]
[363029434,1748555438827,-430.0,0.00019178,2]
[363029435,1748555438835,-430.0,0.00019178,2]
[363029436,1748555438843,-430.0,0.00019178,2]
[363029437,1748555438852,-430.0,0.00019178,2]
[363029438,1748555438860,-430.0,0.00019178,2]
[363029439,1748555438868,-430.0,0.00019178,2]
[363029440,1748555438877,-420.0,0.00019178,2]
[363029441,1748555438885,-430.0,0.00019178,2]
[363029442,1748555438893,-350.0,0.00019178,2]
[363029443,1748555438901,-430.0,0.00019178,2]
[363029444,1748555438909,-430.0,0.00019178,2]
[363029445,1748555438917,-430.0,0.00019178,2]
[363029446,1748555438925,-430.0,0.00019178,2]
[363029447,1748555438934,-430.0,0.00019178,2]
[363029448,1748555438942,-430.0,0.00019178,2]
[363029449,1748555438950,-430.0,0.00019178,2]
[363029450,1748555438958,-430.0,0.00019178,2]
[363029451,1748555438966,-430.0,0.00019178,2]
[363029452,1748555438974,-504.93973424,0.00019178,2]
[363029453,1748555438982,-430.0,0.00019178,2]
[363029454,1748555438991,-450.0,0.00019178,2]
[363029455,1748555439000,-430.0,0.00019178,2]
[363029456,1748555439009,-6696.96,0.00019178,2]
[363029457,1748555439018,-500.0,0.00019178,2]
[363029458,1748555439027,-430.0,0.00019178,2]
[363029459,1748555439035,-430.0,0.00019178,2]
[363029460,1748555439044,-430.0,0.00019178,2]
[363029461,1748555439054,-430.0,0.00019178,2]
[363029462,1748555439063,-487.06,0.00019178,2]
[363029463,1748555439072,-430.0,0.00019178,2]
[363029464,1748555439082,-430.0,0.00019178,2]
[363029465,1748555439091,-430.0,0.00019178,2]
[363029466,1748555439101,-430.0,0.00019178,2]
[363029467,1748555439110,-430.0,0.00019178,2]
[363029468,1748555439119,-430.0,0.00019178,2]
[363029469,1748555439129,-616.94,0.00019178,2]
[363029470,1748555439142,-492.72,0.00019178,2]
[363029471,1748555439152,-450.0,0.00019178,2]
[363029472,1748555439162,-430.0,0.00019178,2]
[363029473,1748555439171,-450.0,0.00019178,2]
[363029474,1748555439180,-430.0,0.00019178,2]
[363029475,1748555439189,-430.0,0.00019178,2]
[363029476,1748555439199,-430.0,0.00019178,2]
[363029477,1748555439208,-446.09,0.00019178,2]
[363029478,1748555439218,-516.0483265,0.00019178,2]
[363029479,1748555439227,-966.76,0.00019178,2]
[363029480,1748555439236,-556.97001922,0.00019178,2]
[363029481,1748555439246,-431.53932171,0.00019178,2]
[363029482,1748555439255,-430.0,0.00019178,2]
[363029483,1748555439264,-871.41,0.00019178,2]
[363029484,1748555439274,-430.0,0.00019178,2]
[363029485,1748555439283,-430.0,0.00019178,2]
[363029486,1748555439292,-241.89365134,0.00019178,2]
[363029487,1748555439301,-430.0,0.00019178,2]
[363029488,1748555439311,-400.0,0.00019178,2]
[363029489,1748555439320,-563.36539167,0.00019178,2]